bitfinex/quotes_SOLUSD_20250307
["timestamp","ask_amount","ask_price","bid_price","bid_amount"]
[1741309237253,18.79181043,136.94,136.8,312.0]
[1741309237569,20.79181043,136.92,136.78,12.92]
[1741309237755,18.79181043,136.9,136.72,171.1]
[1741309238071,20.79181043,136.88,136.72,158.18]
[1741309238255,18.79181043,136.86,136.72,158.18]
[1741309238452,18.79181043,136.84,136.66,0.03]
[1741309238655,18.79181043,136.82,136.66,0.03]
[1741309238852,18.79181043,136.8,136.66,0.03]
[1741309239064,18.79181043,136.78,136.66,0.03]
[1741309239262,20.79181043,136.78,136.66,0.03]
[1741309239554,7.8466,136.79,136.66,0.03]
[1741309239555,18.79181043,136.74,136.66,0.03]
[1741309239755,18.79181043,136.74,136.6,0.03]
[1741309240372,12.5806,136.73,136.66,0.03]
[1741309240583,18.79181043,136.72,136.6,0.03]
[1741309241096,20.79181043,136.72,136.6,0.03]
[1741309241265,2.02906157,136.66,136.54,0.03]
[1741309241463,0.14216157,136.64,136.54,0.03]
[1741309241665,18.79181043,136.62,136.54,0.03]
[1741309241857,0.14216157,136.62,136.54,0.03]
[1741309242163,0.14216157,136.63,136.54,55.97309681]
[1741309242474,0.14216157,136.63,136.54,0.03]
[1741309243667,0.14216157,136.61,136.54,0.03]
[1741309244071,0.14216157,136.61,136.55,0.14216157]
[1741309244252,0.14216157,136.61,136.54,312.03]
[1741309244253,0.14216157,136.61,136.54,0.03]
[1741309245379,18.79181043,136.59,136.54,0.03]
[1741309245688,18.79181043,136.57,136.54,0.03]
[1741309246580,18.79181043,136.57,136.53,0.03]
[1741309247466,25.6129,136.65,136.53,0.17216157]
[1741309248085,18.64964886,136.64,136.53,0.03]
[1741309248289,0.14216157,136.63,136.53,0.03]
[1741309248994,18.64964886,136.64,136.53,0.03]
[1741309249203,0.14216157,136.63,136.53,0.03]
[1741309249563,18.64964886,136.62,136.53,0.03]
[1741309249959,0.14216157,136.61,136.53,0.03]
[1741309250288,18.64964886,136.62,136.53,0.03]
[1741309250493,18.64964886,136.62,136.54,0.14216157]
[1741309250985,18.64964886,136.62,136.53,0.03]
[1741309251200,0.14216157,136.61,136.53,0.03]
[1741309251558,7.3201,136.61,136.53,0.03]
[1741309251872,18.64964886,136.6,136.53,0.03]
[1741309252393,0.14216157,136.59,136.53,0.17216157]
[1741309252876,0.14216157,136.59,136.53,0.03]
[1741309253982,0.14216157,136.56,136.53,0.03]
[1741309254576,17.79181043,136.57,136.53,0.03]
[1741309255890,7.3227,136.56,136.53,0.03]
[1741309256299,25.6296,136.56,136.47,0.03]
[1741309256507,13.0486,136.55,136.47,0.03]
[1741309256801,18.79181043,136.51,136.34,0.03]
[1741309256990,33.71181043,136.51,136.34,0.03]
[1741309257166,18.79181043,136.5,136.34,0.17216157]
[1741309257483,12.4692,136.45,136.34,0.03]
[1741309257661,18.79181043,136.44,136.34,0.03]
[1741309257864,12.4692,136.45,136.34,0.03]
[1741309257865,18.79181043,136.42,136.34,0.03]
[1741309258689,18.79181043,136.42,136.34,312.03]
[1741309258889,18.79181043,136.42,136.34,0.03]
[1741309259890,18.79181043,136.4,136.34,0.03]
[1741309260475,21.73435843,136.4,136.34,0.03]
[1741309260786,21.59219686,136.4,136.34,0.03]
[1741309260988,18.64964886,136.42,136.34,0.17216157]
[1741309261495,18.64964886,136.42,136.34,0.03]
[1741309261870,7.3286,136.46,136.38,0.14216157]
[1741309262064,7.3265,136.49,136.38,0.28432314]
[1741309262280,7.3265,136.49,136.41,55.94309681]
[1741309262596,7.3265,136.49,136.41,0.14216157]
[1741309262896,18.79181043,136.48,136.41,0.14216157]
[1741309263278,25.6428,136.49,136.41,0.14216157]
[1741309263279,7.3265,136.49,136.41,0.14216157]
[1741309263476,18.79181043,136.48,136.35,55.80093524]
[1741309263681,18.79181043,136.48,136.35,0.14216157]
[1741309263888,18.79181043,136.46,136.35,55.94309681]
[1741309264086,18.64964886,136.46,136.41,0.03]
[1741309264993,18.3106,136.54,136.41,137.97216157]
[1741309265176,7.3227,136.56,136.45,55.94309681]
[1741309265383,7.3227,136.56,136.5,0.14216157]
[1741309265582,25.6296,136.56,136.49,312.0]
[1741309265783,0.14216157,136.55,136.41,0.03]
[1741309266007,18.79181043,136.55,136.41,0.03]
[1741309266501,20.79181043,136.55,136.41,0.03]
[1741309266705,18.79181043,136.55,136.41,0.03]
[1741309266877,18.79181043,136.53,136.41,0.03]
[1741309267083,2.0,136.52,136.41,0.03]
[1741309267323,18.79181043,136.51,136.41,0.03]
[1741309267489,18.79181043,136.49,136.41,0.0001]
[1741309267684,18.79181043,136.47,136.34,0.03]
[1741309267905,18.79181043,136.45,136.34,0.03]
[1741309269118,18.79181043,136.43,136.34,0.03]
[1741309269619,0.14216157,136.43,136.34,0.03]
[1741309269789,18.79181043,136.41,136.34,0.03]
[1741309270620,7.3303,136.42,136.34,55.83093524]
[1741309270800,7.3303,136.42,136.35,0.14216157]
[1741309271310,25.644,136.49,136.35,212.53490724]
[1741309271627,7.3265,136.49,136.4,0.28432314]
[1741309271803,18.3125,136.52,136.47,0.14216157]
[1741309272125,18.3125,136.52,136.46,312.0]
[1741309272288,18.79181043,136.51,136.36,201.12283524]
[1741309272493,18.79181043,136.51,136.37,0.14216157]
[1741309272689,18.64964886,136.49,136.35,171.64]
[1741309272915,0.14216157,136.48,136.35,171.64]
[1741309273313,0.14216157,136.48,136.36,0.14216157]
[1741309273510,18.64964886,136.51,136.36,0.28432314]
[1741309273702,18.64964886,136.51,136.38,56.08525838]
[1741309273908,7.326,136.5,136.41,55.80093524]
[1741309274207,18.3125,136.52,136.41,55.80093524]
[1741309274208,7.3238,136.54,136.45,0.28432314]
[1741309274517,18.64964886,136.53,136.45,0.14216157]
[1741309274918,25.6334,136.54,136.45,0.14216157]
[1741309275112,18.79181043,136.53,136.45,0.14216157]
[1741309275291,18.79181043,136.53,136.39,137.8]
[1741309275292,25.6334,136.54,136.47,0.14216157]
[1741309275498,18.64964886,136.53,136.47,0.14216157]
[1741309275803,7.3238,136.54,136.47,137.94216157]
[1741309275999,18.64964886,136.59,136.47,0.14216157]
[1741309276315,0.14216157,136.56,136.41,0.17216157]
[1741309276507,0.14216157,136.56,136.41,0.03]
[1741309276818,128.14217325,136.6,136.42,55.80093524]
[1741309277000,18.64964886,136.59,136.45,0.14216157]
[1741309277202,0.14216157,136.58,136.42,0.28432314]
[1741309277594,18.64964886,136.59,136.44,55.94309681]
[1741309277789,98.814,136.62,136.49,56.08525838]
[1741309278015,62.2162,136.62,136.5,0.14216157]
[1741309278333,18.64964886,136.61,136.5,0.14216157]
[1741309278626,18.2989,136.62,136.53,56.08525838]
[1741309278795,0.033,136.63,136.57,0.14216157]
[1741309279001,0.033,136.63,136.57,0.28432314]
[1741309279315,0.033,136.63,136.57,56.08525838]
[1741309279500,0.033,136.63,136.57,0.28432314]
[1741309279701,7.3521,136.63,136.53,137.8]
[1741309279895,0.033,136.63,136.54,0.28432314]
[1741309280091,0.033,136.63,136.54,64.94631374]
[1741309280295,0.033,136.63,136.58,0.14216157]
[1741309280518,0.033,136.63,136.58,0.28432314]
[1741309280725,0.033,136.63,136.58,56.08525838]
[1741309280902,0.033,136.63,136.58,0.28432314]
[1741309281309,0.033,136.63,136.58,0.14216157]
[1741309281823,0.033,136.63,136.54,0.28432314]
[1741309282121,0.033,136.63,136.59,0.14216157]
[1741309282311,0.033,136.63,136.62,312.14216157]
[1741309282924,0.033,136.63,136.57,0.14216157]
[1741309283417,0.033,136.63,136.55,0.14216157]
[1741309283606,0.033,136.63,136.49,150.68]
[1741309283607,0.17516157,136.63,136.49,150.68]
[1741309283807,0.17516157,136.63,136.49,12.88]
[1741309284020,18.79181043,136.61,136.49,12.88]
[1741309284224,31.24251043,136.61,136.49,12.88]
[1741309284400,31.24251043,136.61,136.48,1.53773009]
[1741309284598,31.24251043,136.61,136.47,171.6]
[1741309284804,31.24251043,136.61,136.44,137.8]
[1741309285113,31.24251043,136.61,136.43,55.80093524]
[1741309285314,31.24251043,136.61,136.41,158.0407]
[1741309285315,31.24251043,136.61,136.46,55.80093524]
[1741309285620,31.24251043,136.61,136.48,0.14216157]
[1741309285826,31.24251043,136.61,136.51,0.14216157]
[1741309286033,25.6222,136.6,136.51,0.14216157]
[1741309286237,0.033,136.63,136.53,55.80093524]
[1741309286532,7.352,136.63,136.54,55.94309681]
[1741309286719,25.6495,136.63,136.54,0.14216157]
[1741309286912,7.352,136.63,136.53,74.59274567]
[1741309287218,0.033,136.63,136.57,0.14216157]
[1741309287513,0.033,136.63,136.58,0.14216157]
[1741309287904,0.033,136.67,136.58,0.28432314]
[1741309288240,0.033,136.67,136.58,0.14216157]
[1741309288534,0.033,136.62,136.58,0.28432314]
[1741309288744,0.033,136.62,136.61,55.94309681]
[1741309288945,0.033,136.62,136.61,76.2710305]
[1741309289133,0.033,136.67,136.62,18.933972]
[1741309289298,0.033,136.67,136.66,312.14216157]
[1741309289708,0.033,136.67,136.62,0.14216157]
[1741309290018,0.033,136.67,136.62,0.28432314]
[1741309290535,0.033,136.67,136.65,56.08525838]
[1741309290727,0.033,136.67,136.66,76.27069187]
[1741309291040,0.033,136.77,136.7,18.933972]
[1741309291244,0.033,136.77,136.75,56.08525838]
[1741309291413,0.033,136.77,136.75,55.94309681]
[1741309291617,0.033,136.77,136.75,56.08525838]
[1741309291816,0.033,136.77,136.75,74.73490724]
[1741309292018,0.033,136.77,136.75,193.88525838]
[1741309292525,0.033,136.77,136.75,212.53490724]
[1741309292711,0.033,136.77,136.76,18.933972]
[1741309292910,12.6412,136.94,136.79,18.933972]
[1741309293109,7.303,136.93,136.86,0.14216157]
[1741309293513,18.64964886,136.92,136.86,0.14216157]
[1741309293948,7.303,136.93,136.84,56.08525838]
[1741309294242,18.64964886,136.96,136.84,0.28432314]
[1741309294413,18.64964886,136.96,136.84,56.08525838]
[1741309294617,22.55509988,136.87,136.84,56.08525838]
[1741309294839,22.55509988,136.87,136.84,0.28432314]
[1741309295148,22.55509988,136.87,136.86,74.73490724]
[1741309295344,22.55509988,136.87,136.86,212.53490724]
[1741309296043,25.17629965,136.88,136.87,20.933972]
[1741309296213,25.17629965,136.88,136.87,212.53490724]
[1741309296214,11.84299965,136.88,136.87,212.53490724]
[1741309296413,11.84299965,136.88,136.87,193.88525838]
[1741309296615,11.84299965,136.88,136.87,0.14216157]
[1741309297339,11.84299965,136.88,136.87,212.53490724]
[1741309298422,11.84299965,136.88,136.87,193.88525838]
[1741309298629,11.84299965,136.88,136.87,212.53490724]
[1741309299426,11.84299965,136.88,136.87,450.08432314]
[1741309299632,11.84299965,136.88,136.87,449.94216157]
[1741309299837,3.81814799,136.88,136.87,524.53490724]
[1741309300126,3.81814799,136.88,136.87,212.53490724]
[1741309300329,7.3019,136.95,136.88,18.933972]
[1741309300633,7.3019,136.95,136.92,0.14216157]
[1741309300634,0.033,136.93,136.92,0.14216157]
[1741309301053,0.033,136.93,136.89,0.14216157]
[1741309301255,0.033,136.93,136.89,0.28432314]
[1741309301747,0.033,136.93,136.89,0.14216157]
[1741309301938,0.033,136.93,136.89,0.28432314]
[1741309302138,0.033,136.93,136.89,0.14216157]
[1741309302340,0.033,136.93,136.89,55.94309681]
[1741309302562,0.033,136.93,136.89,0.14216157]
[1741309302933,0.033,136.93,136.89,312.14216157]
[1741309303547,0.033,136.93,136.89,312.0]
[1741309303761,0.033,136.93,136.86,171.22]
[1741309303932,0.033,136.93,136.87,0.14216157]
[1741309304433,0.033,136.93,136.86,171.22]
[1741309304635,18.64964886,136.92,136.83,12.8]
[1741309305138,7.4796,136.93,136.84,0.14216157]
[1741309305339,7.4796,136.93,136.86,0.14216157]
[1741309305570,7.4796,136.93,136.86,55.94309681]
[1741309305749,7.4796,136.93,136.83,150.6]
[1741309306060,7.4796,136.93,136.87,55.80093524]
[1741309306265,7.4796,136.93,136.88,0.14216157]
[1741309306631,7.4796,136.93,136.88,55.94309681]
[1741309306864,7.4796,136.93,136.84,18.933972]
[1741309307044,14.7827,136.93,136.87,55.80093524]
[1741309307235,14.7827,136.93,136.88,0.14216157]
[1741309307639,18.64964886,136.92,136.83,150.6]
[1741309307852,18.64964886,136.92,136.84,0.14216157]
[1741309308053,14.7827,136.93,136.86,0.14216157]
[1741309308449,14.7827,136.93,136.86,55.94309681]
[1741309308746,0.14216157,136.91,136.77,296.07]
[1741309308968,0.14216157,136.91,136.79,55.80093524]
[1741309309557,0.14216157,136.91,136.78,137.8]
[1741309309742,0.14216157,136.91,136.79,312.0]
[1741309310432,18.64964886,136.89,136.78,12.8]
[1741309310635,18.64964886,136.89,136.79,55.80093524]
[1741309310836,7.3046,136.9,136.82,0.14216157]
[1741309311037,7.304,136.92,136.84,56.08525838]
[1741309311865,14.7826,136.93,136.84,193.88525838]
[1741309312082,7.4796,136.93,136.88,0.14216157]
[1741309312265,14.7826,136.93,136.88,0.14216157]
[1741309312443,14.7826,136.93,136.88,0.28432314]
[1741309312444,7.4796,136.93,136.88,0.28432314]
[1741309312771,7.4796,136.93,136.88,56.08525838]
[1741309312973,7.4796,136.93,136.89,55.80093524]
[1741309313144,0.033,136.93,136.91,55.94309681]
[1741309313561,0.033,136.93,136.88,165.43045731]
[1741309313562,0.033,136.93,136.92,312.14216157]
[1741309314367,0.033,136.93,136.92,312.28432314]
[1741309314540,0.033,136.93,136.92,531.83840724]
[1741309314741,0.033,136.93,136.92,449.94216157]
[1741309315153,0.033,136.93,136.92,319.58782314]
[1741309315472,0.033,136.93,136.92,368.08525838]
[1741309315648,0.033,136.93,136.92,312.28432314]
[1741309315967,0.033,136.93,136.92,531.83840724]
[1741309316668,0.033,137.02,136.93,43.023972]
[1741309316847,0.033,137.02,136.95,18.933972]
[1741309317051,0.033,137.02,136.94,3.5320245]
[1741309317052,0.033,137.02,136.99,0.14216157]
[1741309317665,0.033,137.02,136.98,0.14216157]
[1741309317867,0.033,137.02,136.99,0.14216157]
[1741309318053,0.033,137.02,137.0,55.94309681]
[1741309318372,0.033,137.02,137.01,1.81630191]
[1741309318549,0.033,137.02,137.01,74.73490724]
[1741309318742,0.033,137.02,137.01,0.14216157]
[1741309319161,0.033,137.02,136.97,18.79181043]
[1741309319364,0.033,137.02,137.01,0.14216157]
[1741309319667,0.033,137.02,137.01,74.59274567]
[1741309320046,0.033,137.07,137.02,0.14216157]
[1741309320251,0.033,137.07,137.05,0.28432314]
[1741309320463,0.033,137.07,137.05,13.06432314]
[1741309320666,0.033,137.07,137.06,76.26639916]
[1741309320848,0.033,137.07,137.06,214.06639916]
[1741309321059,0.033,137.07,137.06,193.88525838]
[1741309321369,0.033,137.07,137.06,74.73490724]
[1741309321675,7.1897,137.2,137.09,0.14216157]
[1741309321962,7.1897,137.2,137.11,0.14216157]
[1741309322165,14.4784,137.2,137.13,0.14216157]
[1741309322466,14.4784,137.2,137.14,0.14216157]
[1741309322763,18.64964886,137.19,137.1,0.14216157]
[1741309322967,2.0,137.19,137.07,137.8]
[1741309323155,18.64964886,137.17,137.07,137.8]
[1741309323352,0.14216157,137.16,137.03,206.36093524]
[1741309323692,0.14216157,137.16,137.05,312.0]
[1741309323971,18.79181043,137.12,137.03,12.76]
[1741309324173,18.64964886,137.12,137.04,55.80093524]
[1741309324369,7.4382,137.13,137.05,55.94309681]
[1741309324566,14.7305,137.13,137.06,55.80093524]
[1741309324768,14.7307,137.13,137.07,0.14216157]
[1741309324949,14.7307,137.13,137.06,137.8]
[1741309325270,18.64964886,137.12,137.03,12.79]
[1741309325469,0.14216157,137.11,137.03,12.79]
[1741309325849,18.64964886,137.12,137.03,12.79]
[1741309326056,18.64964886,137.12,137.04,0.14216157]
[1741309326255,0.14216157,137.11,137.03,12.79]
[1741309326471,18.64964886,137.09,137.03,12.79]
[1741309326661,7.2939,137.1,137.03,12.79]
[1741309326970,7.2928,137.12,137.04,0.14216157]
[1741309327191,18.64964886,137.11,137.04,0.14216157]
[1741309327380,18.64964886,137.11,137.03,12.79]
[1741309327381,0.14216157,137.1,137.03,12.79]
[1741309327576,0.14216157,137.1,136.99,158.04]
[1741309327577,0.14216157,137.1,136.96,137.8]
[1741309327778,0.14216157,137.08,136.96,12.76]
[1741309327974,18.79181043,137.06,136.89,0.03]
[1741309328178,18.79181043,137.04,136.89,0.03]
[1741309328377,14.5534,137.05,136.89,0.03]
[1741309328378,18.79181043,137.0,136.89,0.03]
[1741309328587,18.79181043,136.98,136.89,0.03]
[1741309328969,18.79181043,136.96,136.86,0.03]
[1741309329176,18.79181043,136.94,136.86,0.03]
[1741309329680,18.79181043,136.92,136.77,0.03]
[1741309329880,18.79181043,136.9,136.77,0.03]
[1741309330398,18.79181043,136.9,136.77,312.03]
[1741309330582,0.14216157,136.87,136.78,0.14216157]
[1741309330774,0.14216157,136.87,136.77,312.03]
[1741309331595,18.79181043,136.85,136.77,0.03]
[1741309331982,18.79181043,136.83,136.72,0.03]
[1741309332381,18.79181043,136.81,136.72,0.03]
[1741309332586,18.64964886,136.79,136.72,0.03]
[1741309332897,18.64964886,136.79,136.69,12.76]
[1741309332898,0.14216157,136.78,136.69,12.76]
[1741309333101,0.14216157,136.78,136.65,0.21324235]
[1741309333302,0.14216157,136.78,136.65,156.66289121]
[1741309333596,0.14216157,136.78,136.65,0.21324235]
[1741309333777,0.14216157,136.78,136.65,55.94309681]
[1741309333975,0.14216157,136.78,136.66,55.80093524]
[1741309334177,0.14216157,136.78,136.63,295.88]
[1741309334397,0.14216157,136.75,136.64,55.80093524]
[1741309334583,7.3115,136.77,136.67,55.80093524]
[1741309334785,20.335,136.8,136.7,0.14216157]
[1741309334988,18.64964886,136.79,136.63,165.3989]
[1741309335182,0.14216157,136.78,136.63,213.88093524]
[1741309335385,18.79181043,136.76,136.63,158.08]
[1741309335780,18.79181043,136.76,136.64,0.14216157]
[1741309336183,18.79181043,136.76,136.63,213.88093524]
[1741309336380,18.79181043,136.74,136.6,193.60093524]
[1741309336772,18.79181043,136.74,136.63,0.14216157]
[1741309337172,7.3126,136.75,136.65,0.28432314]
[1741309337394,7.6683,136.77,136.7,0.14216157]
[1741309337588,7.6683,136.77,136.74,0.14216157]
[1741309337794,7.6683,136.77,136.75,0.14216157]
[1741309337994,7.6683,136.77,136.75,312.14216157]
[1741309338389,14.9799,136.77,136.75,312.0]
[1741309338595,7.6683,136.77,136.76,0.14216157]
[1741309339806,14.9799,136.77,136.71,0.14216157]
[1741309340003,14.9799,136.77,136.66,158.27]
[1741309340004,18.64964886,136.76,136.66,158.27]
[1741309340208,18.79181043,136.76,136.66,214.07093524]
[1741309340507,18.79181043,136.76,136.67,0.14216157]
[1741309340818,7.3126,136.75,136.67,0.14216157]
[1741309340986,18.79181043,136.74,136.66,158.27]
[1741309341186,18.79181043,136.74,136.66,0.03]
[1741309341386,18.79181043,136.72,136.66,0.03]
[1741309342409,12.0685,136.73,136.66,55.97309681]
[1741309342614,0.14216157,136.71,136.66,0.03]
[1741309343120,0.14216157,136.71,136.57,351.88093524]
[1741309343333,0.14216157,136.71,136.54,7.3235]
[1741309343334,18.79181043,136.69,136.54,55.80093524]
[1741309343494,18.79181043,136.69,136.52,7.3245]
[1741309343495,18.79181043,136.69,136.53,12.76]
[1741309343895,18.79181043,136.69,136.55,55.80093524]
[1741309344122,18.79181043,136.69,136.5,0.03]
[1741309344123,18.79181043,136.67,136.5,137.83]
[1741309344313,18.79181043,136.67,136.51,55.80093524]
[1741309344492,18.79181043,136.65,136.51,55.80093524]
[1741309344691,18.79181043,136.65,136.52,55.80093524]
[1741309345033,12.6563,136.68,136.59,55.80093524]
[1741309345196,12.6563,136.68,136.62,0.14216157]
[1741309345393,12.6563,136.68,136.63,55.94309681]
[1741309345705,7.6745,136.7,136.65,0.14216157]
[1741309345889,7.6745,136.7,136.66,312.0]
[1741309346089,7.6745,136.7,136.67,0.14216157]
[1741309346310,7.6745,136.7,136.68,55.94309681]
[1741309346491,7.4398,136.78,136.7,0.14216157]
[1741309346693,14.7508,136.78,136.7,0.14216157]
[1741309347214,7.4398,136.78,136.72,55.80093524]
[1741309347395,14.7508,136.78,136.71,0.14216157]
[1741309347790,14.7508,136.78,136.74,0.14216157]
[1741309347791,7.4398,136.78,136.74,0.14216157]
[1741309347992,7.4398,136.78,136.75,55.94309681]
[1741309348215,11.19434697,136.85,136.78,0.14216157]
[1741309348510,11.19434697,136.85,136.81,0.14216157]
[1741309348812,20.0405,136.86,136.81,0.14216157]
[1741309349016,20.0405,136.86,136.82,55.94309681]
[1741309349214,12.9238,136.93,136.85,0.14216157]
[1741309349514,0.033,136.9,136.85,312.14216157]
[1741309349719,0.033,136.9,136.85,367.94309681]
[1741309349894,0.033,136.9,136.87,55.80093524]
[1741309350097,0.033,136.9,136.88,55.94309681]
[1741309350511,0.033,136.9,136.87,0.14216157]
[1741309350720,0.033,136.9,136.88,55.80093524]
[1741309350921,0.033,136.9,136.87,137.8]
[1741309351120,0.033,136.9,136.88,0.14216157]
[1741309351418,0.033,136.9,136.88,55.94309681]
[1741309351594,0.033,136.9,136.89,74.73490724]
[1741309352722,0.033,136.9,136.89,82.04000724]
[1741309352922,0.033,136.9,136.89,330.933972]
[1741309353124,0.033,136.9,136.89,367.80093524]
[1741309353427,0.033,136.9,136.89,524.53490724]
[1741309354003,7.0968,137.02,136.9,26.238572]
[1741309354304,13.0494,137.06,137.01,0.14216157]
[1741309355330,7.3744,137.1,137.04,0.14216157]
[1741309356126,7.3744,137.1,137.05,0.14216157]
[1741309356127,18.64964886,137.09,137.05,0.14216157]
[1741309356299,14.6683,137.1,137.05,0.14216157]
[1741309356497,18.64964886,137.09,137.01,0.14216157]
[1741309356700,7.3744,137.1,137.05,0.14216157]
[1741309356935,7.3744,137.1,137.05,138.08432314]
[1741309357146,0.033,137.16,137.09,0.14216157]
[1741309357426,0.033,137.16,137.11,0.28432314]
[1741309357617,0.033,137.16,137.15,55.94309681]
[1741309358342,0.033,137.16,137.15,212.53490724]
[1741309358533,0.033,137.16,137.15,138.08432314]
[1741309358706,0.033,137.16,137.15,156.733972]
[1741309359028,0.033,137.16,137.13,137.8]
[1741309359229,0.033,137.16,137.14,0.28432314]
[1741309359529,0.033,137.16,137.12,12.72]
[1741309359713,0.033,137.16,137.13,0.14216157]
[1741309360514,0.033,137.16,137.15,0.28432314]
[1741309360716,2.2859476,137.21,137.15,515.17645838]
[1741309360916,2.2859476,137.21,137.2,74.73490724]
[1741309361223,2.2859476,137.21,137.2,282.58534056]
[1741309361422,2.2859476,137.21,137.2,169.453972]
[1741309361630,2.2859476,137.21,137.19,167.92839182]
[1741309361823,2.2859476,137.21,137.19,12.72]
[1741309362023,2.2859476,137.21,137.12,68.73417759]
[1741309362024,9.5740476,137.21,137.12,68.73417759]
[1741309362223,25.67284886,137.2,137.12,12.72]
[1741309362535,18.79181043,137.17,137.01,137.8]
[1741309362722,12.5172,137.18,136.96,150.52]
[1741309362723,18.79181043,137.12,136.96,150.52]
[1741309362917,18.79181043,137.12,136.98,55.80093524]
[1741309363216,18.79181043,137.12,136.96,12.72]
[1741309363416,18.79181043,137.12,136.97,55.80093524]
[1741309363623,18.79181043,137.1,136.94,55.80093524]
[1741309363810,18.79181043,137.1,136.95,55.80093524]
[1741309364131,18.79181043,137.05,136.91,470.04]
[1741309364631,18.79181043,137.05,136.91,158.04]
[1741309364834,18.79181043,137.03,136.91,158.04]
[1741309365041,18.79181043,137.03,136.88,12.72]
[1741309365340,18.79181043,137.03,136.89,55.80093524]
[1741309365531,0.14216157,137.03,136.92,55.94309681]
[1741309366041,0.14216157,137.04,136.94,55.80093524]
[1741309366243,18.64964886,137.05,136.96,55.94309681]
[1741309366441,18.64964886,137.05,136.96,0.14216157]
[1741309366619,18.64964886,137.05,136.98,0.14216157]
[1741309367120,13.1597,137.06,136.97,0.14216157]
[1741309367443,13.1597,137.06,137.03,0.14216157]
[1741309367625,13.1597,137.06,137.03,312.14216157]
[1741309368025,7.3621,137.11,137.03,312.14216157]
[1741309368419,18.64964886,137.1,137.03,312.14216157]
[1741309368747,0.14216157,137.09,136.97,0.14216157]
[1741309368948,0.14216157,137.09,136.97,55.94309681]
[1741309369150,0.14216157,137.09,136.99,0.14216157]
[1741309369320,18.64964886,137.1,137.01,55.80093524]
[1741309369644,18.64964886,137.1,137.02,0.14216157]
[1741309369950,18.64964886,137.1,137.02,5.12062588]
[1741309370253,18.64964886,137.1,137.03,0.14216157]
[1741309370753,18.64964886,137.1,137.01,0.28432314]
[1741309370920,18.64964886,137.1,137.03,0.14216157]
[1741309371423,0.14216157,137.09,136.97,12.7]
[1741309371637,0.14216157,137.09,136.98,0.14216157]
[1741309371834,0.14216157,137.09,136.98,55.80093524]
[1741309372037,0.14216157,137.09,136.97,380.50093524]
[1741309372242,0.14216157,137.07,136.97,12.7]
[1741309372658,0.14216157,137.07,136.98,0.14216157]
[1741309373652,18.68264886,137.1,137.01,0.14216157]
[1741309373845,18.68264886,137.1,137.03,0.14216157]
[1741309374551,18.68264886,137.1,136.99,1.53212106]
[1741309374552,0.14216157,137.09,137.01,0.14216157]
[1741309375039,0.14216157,137.09,137.0,55.94309681]
[1741309375223,0.14216157,137.09,137.02,0.14216157]
[1741309375425,18.68264886,137.1,137.02,0.14216157]
[1741309375931,0.14216157,137.06,136.94,158.04]
[1741309376135,20.79181043,137.09,136.94,158.04]
[1741309376346,18.79181043,137.09,136.96,55.80093524]
[1741309376640,25.5617,137.1,136.94,295.84]
[1741309376841,0.14216157,137.07,136.95,0.14216157]
[1741309377047,18.79181043,137.07,136.95,0.14216157]
[1741309377229,18.79181043,137.07,136.95,55.94309681]
[1741309377434,0.14216157,137.07,136.95,0.14216157]
[1741309377635,0.14216157,137.07,136.97,0.14216157]
[1741309378247,18.68264886,137.1,137.0,55.80093524]
[1741309378437,0.033,137.1,137.01,55.94309681]
[1741309378743,18.82481043,137.1,137.01,367.94309681]
[1741309379043,18.68264886,137.1,137.01,367.94309681]
[1741309379246,0.033,137.1,137.01,367.94309681]
[1741309379449,18.68264886,137.1,137.03,0.14216157]
[1741309379847,18.68264886,137.1,137.01,0.14216157]
[1741309380050,18.68264886,137.1,137.01,55.94309681]
[1741309380251,18.68264886,137.1,137.01,0.14216157]
[1741309380434,18.68264886,137.1,136.96,137.8]
[1741309380435,0.14216157,137.09,136.96,12.7]
[1741309380749,0.14216157,137.09,136.94,295.84]
[1741309380949,12.6334,137.04,136.94,158.04]
[1741309381133,0.14216157,137.02,136.94,158.04]